bitfinex/quotes_BTCUSD_20230403
["timestamp","ask_amount","ask_price","bid_price","bid_amount"]
[1680517513877,0.38197497,28366.0,28365.0,2.54358027]
[1680517514101,0.75327497,28366.0,28365.0,2.54358027]
[1680517514328,0.38197497,28366.0,28365.0,2.54358027]
[1680517514790,0.35497497,28366.0,28365.0,2.54358027]
[1680517515014,0.72627497,28366.0,28365.0,2.54358027]
[1680517515591,0.75327497,28366.0,28365.0,2.54358027]
[1680517515798,0.72627497,28366.0,28365.0,2.54358027]
[1680517516215,0.72645497,28366.0,28365.0,2.37094991]
[1680517516416,0.35515497,28366.0,28365.0,2.37094991]
[1680517516624,0.01118,28366.0,28365.0,2.37094991]
[1680517516843,0.011,28366.0,28365.0,2.37094991]
[1680517517253,6e-05,28370.0,28365.0,2.37094991]
[1680517517465,0.011,28366.0,28365.0,2.37094991]
[1680517519636,0.35515497,28369.0,28365.0,2.37094991]
[1680517519874,0.011,28366.0,28365.0,2.37094991]
[1680517520301,0.35515497,28369.0,28365.0,2.37094991]
[1680517520503,0.014312,28368.0,28365.0,2.37094991]
[1680517520728,0.35497497,28367.0,28365.0,2.37094991]
[1680517520944,0.35497497,28367.0,28365.0,2.37112991]
[1680517522055,0.36907597,28367.0,28365.0,2.37112991]
[1680517522282,0.38607597,28367.0,28365.0,2.37112991]
[1680517528335,0.38593864,28367.0,28365.0,2.37112991]
[1680517528787,0.013784,28366.0,28365.0,2.37112991]
[1680517529009,0.35497497,28366.0,28365.0,2.37112991]
[1680517529647,0.39727797,28366.0,28365.0,2.37112991]
[1680517530536,0.41217297,28366.0,28365.0,2.37112991]
[1680517530736,0.41427797,28366.0,28365.0,2.37112991]
[1680517532040,0.41427797,28366.0,28365.0,2.45402991]
[1680517532639,0.11732247,28366.0,28365.0,2.45402991]
[1680517534096,0.08912047,28366.0,28365.0,2.45402991]
[1680517534772,0.08912047,28366.0,28365.0,2.45384991]
[1680517535417,0.031101,28366.0,28365.0,2.45402991]
[1680517537200,0.045936,28366.0,28365.0,2.45384991]
[1680517538044,0.031101,28366.0,28365.0,2.45384991]
[1680517538505,0.09129107,28366.0,28365.0,2.45384991]
[1680517538718,0.09129107,28366.0,28365.0,2.45402991]
[1680517538932,0.10532807,28366.0,28365.0,2.45402991]
[1680517539347,0.10532807,28366.0,28365.0,2.37112991]
[1680517539996,0.09129107,28366.0,28365.0,2.37112991]
[1680517540415,0.10552107,28366.0,28365.0,2.37112991]
[1680517540832,0.09129107,28366.0,28365.0,2.37112991]
[1680517541495,0.10552107,28366.0,28365.0,2.37112991]
[1680517541708,0.09129107,28366.0,28365.0,2.37112991]
[1680517542118,0.10501207,28366.0,28365.0,2.37112991]
[1680517542330,0.10574207,28366.0,28365.0,2.37112991]
[1680517543235,0.09129107,28366.0,28365.0,2.37112991]
[1680517543687,0.10515607,28366.0,28365.0,2.37112991]
[1680517547982,0.46013104,28366.0,28365.0,2.37112991]
[1680517551401,0.44626604,28366.0,28365.0,2.37112991]
[1680517551606,0.46048704,28366.0,28365.0,2.37112991]
[1680517552287,0.44626604,28366.0,28365.0,2.37112991]
[1680517552494,0.46106204,28366.0,28365.0,2.37112991]
[1680517555556,0.46065004,28366.0,28365.0,2.37112991]
[1680517556377,0.44626604,28366.0,28365.0,2.37112991]
[1680517556607,0.028382,28367.0,28365.0,2.37112991]
[1680517556608,0.00018,28367.0,28366.0,0.2]
[1680517556854,6e-05,28370.0,28369.0,0.2]
[1680517557074,6e-05,28370.0,28369.0,0.89917295]
[1680517557292,6e-05,28370.0,28369.0,0.77317619]
[1680517557523,6e-05,28370.0,28369.0,0.92299619]
[1680517557746,0.00106,28370.0,28369.0,1.26506051]
[1680517558029,0.00106,28370.0,28369.0,1.39120373]
[1680517558252,6e-05,28370.0,28369.0,1.56001869]
[1680517558473,0.00106,28370.0,28369.0,1.58101869]
[1680517558709,0.00106,28370.0,28369.0,1.58102562]
[1680517558940,0.014095,28378.0,28372.0,0.2]
[1680517559161,0.00018,28377.0,28374.0,0.0829]
[1680517559381,0.014275,28379.0,28374.0,0.130078]
[1680517560245,0.014095,28379.0,28374.0,0.130078]
[1680517560503,0.00106,28375.0,28374.0,0.141078]
[1680517560745,6e-05,28375.0,28374.0,0.130078]
[1680517560965,6e-05,28375.0,28374.0,0.134078]
[1680517561183,6e-05,28375.0,28374.0,0.130078]
[1680517561402,0.00106,28375.0,28374.0,0.13999419]
[1680517561620,0.00106,28375.0,28374.0,1.56923127]
[1680517561849,0.02409,28384.0,28383.0,0.2]
[1680517562066,0.02409,28384.0,28383.0,0.2829]
[1680517562286,0.02409,28384.0,28383.0,0.331819]
[1680517562746,0.02409,28384.0,28383.0,0.2829]
[1680517562964,0.03809,28384.0,28383.0,0.2849]
[1680517563178,0.03809,28384.0,28383.0,0.2829]
[1680517563394,0.02409,28384.0,28383.0,0.2829]
[1680517563611,0.03809,28384.0,28383.0,0.2849]
[1680517563834,0.02409,28384.0,28383.0,0.2829]
[1680517564052,0.03809,28384.0,28383.0,0.2849]
[1680517564309,0.02409,28384.0,28383.0,0.2829]
[1680517564539,2.59397079,28406.0,28403.0,0.1226968]
[1680517564766,0.41404688,28414.0,28411.0,0.2117]
[1680517564996,0.41404688,28414.0,28412.0,0.0085]
[1680517564997,1.27446614,28413.0,28412.0,0.0085]
[1680517565231,1.27446614,28413.0,28412.0,0.423694]
[1680517565232,0.007386,28413.0,28412.0,0.423694]
[1680517565460,0.21067588,28425.0,28412.0,0.423694]
[1680517565461,0.08404822,28426.0,28414.0,0.3709]
[1680517565696,0.17364055,28425.0,28420.0,0.45096874]
[1680517565921,0.07260928,28429.0,28424.0,0.0829]
[1680517566143,0.35497497,28428.0,28425.0,0.0828]
[1680517566388,0.12604752,28432.0,28422.0,0.00018]
[1680517566626,0.2,28432.0,28420.0,0.00018]
[1680517566851,0.014,28429.0,28424.0,0.002]
[1680517567082,0.014,28429.0,28418.0,0.2]
[1680517567083,0.14197487,28429.0,28418.0,0.2]
[1680517567300,0.14197487,28428.0,28422.0,0.002]
[1680517568201,0.35497497,28427.0,28421.0,0.0829]
[1680517568426,0.49712984,28427.0,28424.0,0.002]
[1680517568649,0.35515497,28427.0,28421.0,0.0829]
[1680517568869,0.35515497,28427.0,28422.0,0.002]
[1680517569089,0.35515497,28427.0,28424.0,0.0829]
[1680517569357,0.35515497,28427.0,28423.0,0.0829]
[1680517569584,0.36809497,28427.0,28424.0,0.002]
[1680517569808,0.36809497,28427.0,28423.0,0.0829]
[1680517569809,0.35491497,28427.0,28423.0,0.0829]
[1680517570029,0.36791497,28427.0,28423.0,0.0829]
[1680517570253,0.013,28427.0,28423.0,0.0829]
[1680517570479,0.36797497,28427.0,28426.0,0.0829]
[1680517570967,0.35497497,28427.0,28426.0,0.0829]
[1680517571186,0.36797497,28427.0,28426.0,0.0829]
[1680517571406,0.35497497,28427.0,28426.0,0.0829]
[1680517571628,0.36797497,28427.0,28426.0,0.0849]
[1680517572114,0.36797497,28427.0,28426.0,0.002]
[1680517572329,0.36815497,28427.0,28426.0,0.002]
[1680517573194,0.36803497,28427.0,28426.0,0.002]
[1680517573408,0.36815497,28427.0,28426.0,0.002]
[1680517580591,0.38222597,28427.0,28426.0,0.002]
[1680517580807,0.53222597,28427.0,28426.0,0.002]
[1680517581474,0.38222597,28427.0,28426.0,0.002]
[1680517582753,0.75312597,28427.0,28426.0,0.002]
[1680517582971,1.05312597,28427.0,28426.0,0.002]
[1680517585149,0.23825187,28415.0,28409.0,0.2]
[1680517585386,0.60915187,28415.0,28409.0,0.2]
[1680517585625,0.60915187,28415.0,28408.0,0.00018]
[1680517585837,0.60915187,28415.0,28406.0,0.2]
[1680517585838,0.60915187,28415.0,28406.0,0.20018]
[1680517586070,0.15605187,28415.0,28406.0,0.54919242]
[1680517586301,0.15605187,28415.0,28406.0,0.54937242]
[1680517587443,0.14197487,28414.0,28407.0,0.3709]
[1680517587681,0.36905297,28413.0,28407.0,0.00018]
[1680517587896,0.14197487,28412.0,28406.0,0.28308]
[1680517588120,0.014079,28411.0,28406.0,0.28308]
[1680517588322,0.35497497,28410.0,28406.0,0.2779]
[1680517588552,0.49712984,28410.0,28406.0,0.195]
[1680517588775,0.56752684,28410.0,28404.0,0.00018]
[1680517589009,0.14197487,28409.0,28403.0,0.22503246]
[1680517589250,0.39721597,28408.0,28403.0,0.22503246]
[1680517589471,0.51120984,28408.0,28403.0,0.22503246]
[1680517589895,0.14197487,28407.0,28403.0,0.22503246]
[1680517590107,0.35497497,28406.0,28403.0,0.22503246]
[1680517590327,0.35497497,28406.0,28401.0,0.111224]
[1680517590328,0.014082,28405.0,28401.0,0.111224]
[1680517590553,0.14197487,28405.0,28401.0,0.110544]
[1680517590776,0.35473072,28406.0,28401.0,0.110724]
[1680517590987,0.36881172,28406.0,28401.0,0.110724]
[1680517591234,0.027,28405.0,28401.0,0.110724]
[1680517592115,0.00018,28408.0,28405.0,0.07096503]
[1680517592334,0.027,28406.0,28405.0,0.07096503]
[1680517592552,0.35515497,28408.0,28405.0,0.07096503]
[1680517592760,0.35497497,28407.0,28405.0,0.07096503]
[1680517592990,0.00018,28408.0,28405.0,0.07096503]
[1680517593215,0.027,28406.0,28405.0,0.07096503]
[1680517593672,0.36905497,28408.0,28405.0,0.07096503]
[1680517594304,0.39605497,28408.0,28405.0,0.07096503]
[1680517594767,0.38197497,28408.0,28405.0,0.07096503]
[1680517594999,0.027,28408.0,28405.0,0.07096503]
[1680517595473,0.005,28409.0,28405.0,0.07096503]
[1680517595695,0.028157,28412.0,28406.0,0.3709]
[1680517595696,0.027,28408.0,28406.0,0.3709]
[1680517595914,0.027,28408.0,28407.0,0.5194]
[1680517596122,0.027,28408.0,28407.0,0.687001]
[1680517596340,0.027,28408.0,28407.0,0.6694]
[1680517596595,0.005,28416.0,28407.0,0.537001]
[1680517596820,0.013,28408.0,28407.0,0.538001]
[1680517597050,0.35515497,28415.0,28407.0,0.537001]
[1680517597262,0.027,28408.0,28407.0,0.538001]
[1680517597899,0.027,28408.0,28407.0,0.1495]
[1680517599224,0.027,28408.0,28407.0,0.204167]
[1680517601608,0.38197497,28408.0,28407.0,0.055667]
[1680517601871,0.38197497,28408.0,28407.0,0.001]
[1680517601872,0.39605497,28408.0,28407.0,0.001]
[1680517602541,0.36905497,28408.0,28405.0,0.07096503]
[1680517602760,0.35497497,28407.0,28405.0,0.07096503]
[1680517603452,0.36905597,28407.0,28405.0,0.07096503]
[1680517603657,0.35497497,28407.0,28405.0,0.07096503]
[1680517603870,0.35497497,28407.0,28406.0,0.05239]
[1680517604087,0.35497497,28407.0,28405.0,0.07096503]
[1680517604302,0.35497497,28407.0,28406.0,0.053818]
[1680517604512,0.38197497,28407.0,28406.0,0.053818]
[1680517604740,0.38197497,28407.0,28405.0,0.07096503]
[1680517604741,0.86802984,28407.0,28405.0,0.07096503]
[1680517604974,0.35497497,28406.0,28405.0,0.07096503]
[1680517605197,0.54721897,28406.0,28405.0,0.07096503]
[1680517605414,0.91811897,28406.0,28405.0,0.07096503]
[1680517606088,0.79511897,28406.0,28405.0,0.07096503]
[1680517606309,0.79529897,28406.0,28405.0,0.07096503]
[1680517606996,0.76829897,28406.0,28405.0,0.07096503]
[1680517607217,0.80379897,28406.0,28405.0,0.07096503]
[1680517607886,1.06829897,28406.0,28405.0,0.07096503]
[1680517608094,1.09529897,28406.0,28405.0,0.07096503]
[1680517608306,1.06829897,28406.0,28405.0,0.07096503]
[1680517608519,1.09529897,28406.0,28405.0,0.07096503]
[1680517609861,1.06829897,28406.0,28405.0,0.07096503]
[1680517610084,1.09529897,28406.0,28405.0,0.07096503]
[1680517610307,1.06829897,28406.0,28405.0,0.07096503]
[1680517611209,1.11294398,28406.0,28405.0,0.07096503]
[1680517611454,1.06829897,28406.0,28405.0,0.07096503]
[1680517611679,1.09529897,28406.0,28405.0,0.07096503]
[1680517612794,1.06829897,28406.0,28405.0,0.07096503]
[1680517613022,1.09529897,28406.0,28405.0,0.07096503]
[1680517613239,1.06829897,28406.0,28405.0,0.07096503]
[1680517613447,1.09529897,28406.0,28405.0,0.07096503]
[1680517613666,1.06829897,28406.0,28405.0,0.07096503]
[1680517613876,1.09529897,28406.0,28405.0,0.07096503]
[1680517614107,1.06829897,28406.0,28405.0,0.07096503]
[1680517614323,1.09529897,28406.0,28405.0,0.07096503]
[1680517614528,1.06829897,28406.0,28405.0,0.07096503]
[1680517614761,0.69739897,28406.0,28405.0,0.07096503]
[1680517616106,0.72439897,28406.0,28405.0,0.07096503]
[1680517616333,0.69739897,28406.0,28405.0,0.07096503]
[1680517616560,0.72439897,28406.0,28405.0,0.07096503]
[1680517616781,0.69739897,28406.0,28405.0,0.07096503]
[1680517617003,0.72439897,28406.0,28405.0,0.07096503]
[1680517617274,0.69739897,28406.0,28405.0,0.07096503]
[1680517617480,0.72439897,28406.0,28405.0,0.07096503]
[1680517617926,0.42439897,28406.0,28405.0,0.07096503]
[1680517618377,0.02718,28406.0,28405.0,0.07096503]
[1680517618588,0.01908,28409.0,28405.0,0.12188603]
[1680517618805,0.027,28406.0,28405.0,0.07096503]
[1680517619035,0.36923497,28408.0,28405.0,0.12451703]
[1680517619262,0.027,28406.0,28405.0,0.07096503]
[1680517619488,0.36923497,28408.0,28405.0,0.12351903]
[1680517619709,0.027,28406.0,28405.0,0.07096503]
[1680517619929,0.027,28406.0,28405.0,0.12313703]
[1680517620165,0.36905597,28406.0,28405.0,0.07096503]
[1680517620400,0.39605597,28406.0,28405.0,0.07096503]
[1680517621296,0.38197497,28406.0,28405.0,0.07096503]
[1680517621517,0.027,28406.0,28405.0,0.07096503]
[1680517621957,0.39605597,28406.0,28405.0,0.07096503]
[1680517622178,0.39605597,28406.0,28405.0,0.77096503]
[1680517622420,0.39605597,28406.0,28405.0,0.77114503]
[1680517622864,0.38197497,28406.0,28405.0,0.07114503]
[1680517623079,0.39605597,28406.0,28405.0,0.07096503]
[1680517624374,0.38197497,28406.0,28405.0,0.04596503]
[1680517624570,0.39605597,28406.0,28405.0,0.04596503]
[1680517626604,0.77195597,28406.0,28405.0,0.04596503]
[1680517626820,0.82828197,28406.0,28405.0,0.04596503]
[1680517627287,0.82828197,28406.0,28399.0,0.16792605]
[1680517627288,0.35497497,28401.0,28399.0,0.07957865]
[1680517627554,0.35497497,28401.0,28395.0,0.00018]
[1680517627555,0.005,28397.0,28395.0,0.00018]
[1680517627766,0.005,28397.0,28391.0,0.37699067]
[1680517627767,0.005,28393.0,28391.0,0.00018]
[1680517627986,0.51103784,28392.0,28389.0,0.11552866]
[1680517629120,0.39606297,28392.0,28389.0,0.11552866]
[1680517629355,0.36906297,28392.0,28390.0,0.08354866]
[1680517629598,0.36906297,28392.0,28389.0,0.15741385]
[1680517629599,0.36906297,28392.0,28389.0,0.11552866]
[1680517630276,0.35956429,28392.0,28389.0,0.11546866]
[1680517630494,0.35950429,28392.0,28389.0,0.11552866]
[1680517630712,0.38650429,28392.0,28389.0,0.11552866]
[1680517630931,0.35497497,28390.0,28389.0,0.11534866]
[1680517631149,0.39724197,28390.0,28389.0,0.03198]
[1680517631364,0.39724197,28390.0,28389.0,0.0318]
[1680517632239,0.39606397,28390.0,28389.0,0.0318]
[1680517632461,0.36906397,28390.0,28389.0,0.0318]
[1680517632716,0.39606397,28390.0,28389.0,0.0318]
[1680517633609,0.36906397,28390.0,28389.0,0.0318]
[1680517633827,0.39606397,28390.0,28389.0,0.0318]
[1680517634056,0.36906397,28390.0,28389.0,0.0318]
[1680517634272,0.39606397,28390.0,28389.0,0.0318]
[1680517634934,0.36906397,28390.0,28389.0,0.0318]
[1680517635295,0.76696397,28390.0,28389.0,0.0318]
[1680517635509,0.39606397,28390.0,28389.0,0.0318]
[1680517635923,0.40106397,28390.0,28389.0,0.0318]
[1680517636925,0.37406397,28390.0,28389.0,0.0318]
[1680517637135,0.40106397,28390.0,28389.0,0.0318]
[1680517637331,0.40112397,28390.0,28385.0,0.49082579]
[1680517637532,0.35497497,28389.0,28385.0,0.36545194]
[1680517637847,0.49712984,28389.0,28385.0,0.36545194]
[1680517638070,0.01409,28388.0,28385.0,0.36545194]
[1680517638290,0.35497497,28387.0,28385.0,0.36339194]
[1680517638505,0.014091,28386.0,28385.0,0.36339194]
[1680517638701,0.36906597,28386.0,28384.0,0.12561385]
[1680517638909,0.35497497,28385.0,28384.0,0.12543385]
[1680517639615,0.00018,28386.0,28384.0,0.12543385]
[1680517639844,0.01409,28389.0,28385.0,0.15]
[1680517640057,0.36906497,28389.0,28385.0,0.15]
[1680517640278,0.36924497,28389.0,28384.0,0.27393385]
[1680517640503,0.36924497,28389.0,28385.0,0.15]
[1680517640937,0.39624497,28389.0,28385.0,0.15]
[1680517641169,0.35497497,28388.0,28384.0,0.27543385]
[1680517641358,0.36924497,28388.0,28384.0,0.12543385]
[1680517641801,0.36924497,28388.0,28384.0,0.27543385]
[1680517642014,0.36924497,28388.0,28383.0,0.3388831]
[1680517642015,0.36924497,28388.0,28383.0,0.31449695]
[1680517642230,0.51121984,28388.0,28383.0,0.31431695]
[1680517642631,0.36924497,28388.0,28383.0,0.31431695]
[1680517642831,0.36924497,28388.0,28383.0,0.14723385]
[1680517642975,0.36924497,28388.0,28383.0,0.24723385]
[1680517642976,0.39624497,28388.0,28383.0,0.24723385]
[1680517643192,0.39624497,28388.0,28383.0,0.14723385]
[1680517643397,0.39624497,28388.0,28383.0,0.31431695]
[1680517644033,0.39624497,28388.0,28384.0,0.12543385]
[1680517644709,0.155,28386.0,28383.0,0.14723385]
[1680517644967,0.59559084,28385.0,28383.0,0.0218]
[1680517645182,0.45361597,28385.0,28383.0,0.0218]
[1680517645637,0.45379597,28385.0,28383.0,0.0218]
[1680517645865,0.82469597,28385.0,28383.0,0.0218]
[1680517646095,0.6696,28384.0,28383.0,0.0218]
[1680517646312,0.54424364,28384.0,28383.0,0.0218]
[1680517646988,0.57124364,28384.0,28383.0,0.0218]
[1680517647849,0.560872,28384.0,28383.0,0.0218]
[1680517648135,0.162972,28384.0,28383.0,0.0218]
[1680517648357,0.014272,28384.0,28383.0,0.0218]
[1680517648813,0.041272,28384.0,28383.0,0.0218]
[1680517649254,0.014272,28384.0,28383.0,0.0218]
[1680517649468,0.041272,28384.0,28383.0,0.0218]
[1680517649687,0.014272,28384.0,28383.0,0.0218]
[1680517650140,0.041272,28384.0,28383.0,0.0218]
[1680517650576,0.041092,28384.0,28383.0,0.0218]
[1680517651240,0.014092,28384.0,28383.0,0.0218]
[1680517651451,0.041092,28384.0,28383.0,0.0218]
[1680517652783,0.041272,28384.0,28383.0,0.0218]
[1680517653465,0.39624697,28384.0,28383.0,0.0218]
[1680517653688,0.86984697,28384.0,28383.0,0.0218]
[1680517654128,1.24074697,28384.0,28383.0,0.0218]
[1680517654616,1.20524697,28384.0,28383.0,0.0218]
[1680517654830,1.23224697,28384.0,28383.0,0.0218]
[1680517655044,1.20524697,28384.0,28383.0,0.0218]
[1680517655295,1.23224697,28384.0,28383.0,0.0218]
[1680517655520,1.24074697,28384.0,28383.0,0.0218]
[1680517655741,1.21374697,28384.0,28383.0,0.0218]
[1680517655957,1.24074697,28384.0,28383.0,0.0218]
[1680517656176,1.23224697,28384.0,28383.0,0.0218]
[1680517656406,1.24074697,28384.0,28383.0,0.0218]
[1680517656854,1.21374697,28384.0,28383.0,0.0218]
[1680517657084,1.24074697,28384.0,28383.0,0.0218]
[1680517659955,1.15844697,28384.0,28383.0,0.0218]
[1680517660401,1.24124697,28384.0,28383.0,0.0218]
[1680517660617,1.72399198,28384.0,28383.0,0.0218]
[1680517660827,1.69699198,28384.0,28383.0,0.0218]
[1680517661074,1.72399198,28384.0,28383.0,0.0218]
[1680517661288,1.69699198,28384.0,28383.0,0.0218]
[1680517661514,1.25919198,28384.0,28383.0,0.0218]
[1680517661725,1.23219198,28384.0,28383.0,0.0218]
[1680517661946,1.38219198,28384.0,28383.0,0.0218]
[1680517662188,1.69729198,28384.0,28383.0,0.0218]
[1680517663311,1.72429198,28384.0,28383.0,0.0218]
[1680517663533,0.005,28376.0,28375.0,0.00018]
[1680517663754,0.005,28376.0,28372.0,0.20896866]
[1680517663755,0.96882584,28376.0,28374.0,0.00018]
[1680517663982,0.96882584,28376.0,28372.0,0.08371481]
[1680517663983,0.35497497,28375.0,28372.0,0.08371481]
[1680517664207,0.49642984,28375.0,28372.0,0.08371481]
[1680517664432,0.35445497,28375.0,28372.0,0.36158431]
[1680517664653,0.35497497,28373.0,28372.0,0.08371481]
[1680517665558,0.35497497,28373.0,28372.0,0.29261779]
[1680517666005,0.35497497,28373.0,28372.0,0.12553469]
[1680517666426,0.38197497,28373.0,28372.0,0.12553469]
[1680517666856,0.38197497,28373.0,28372.0,0.12535469]
[1680517666857,0.35445497,28373.0,28372.0,0.12535469]
[1680517667000,0.38041497,28373.0,28372.0,0.12535469]
[1680517667205,0.38041497,28373.0,28372.0,0.1670831]
[1680517667419,0.38041497,28373.0,28372.0,0.29259325]
[1680517667647,0.38041497,28373.0,28372.0,0.12551015]
[1680517667855,0.38041497,28373.0,28372.0,0.12533015]
[1680517668453,0.75131497,28373.0,28372.0,0.29241325]
[1680517668742,0.38041497,28373.0,28372.0,0.08373447]
[1680517668883,0.38041497,28373.0,28371.0,0.23086462]
[1680517669092,0.38041497,28373.0,28372.0,0.08355447]
[1680517669306,0.38041497,28373.0,28371.0,0.14731015]
[1680517669307,0.38041497,28373.0,28371.0,0.23086462]
[1680517669509,0.38041497,28373.0,28371.0,0.10553447]
[1680517669730,0.38041497,28373.0,28372.0,0.054368]
[1680517669934,0.38041497,28373.0,28372.0,0.12533015]
[1680517670153,0.35341497,28373.0,28372.0,0.12533015]
[1680517670384,0.38041497,28373.0,28372.0,0.2089492]
[1680517670594,0.38041497,28373.0,28372.0,0.12533015]
[1680517670801,0.35341497,28373.0,28372.0,0.20895084]
[1680517671016,0.35341497,28373.0,28372.0,0.08362069]
[1680517671235,0.35341497,28373.0,28372.0,0.20895084]
[1680517671450,0.35341497,28373.0,28372.0,0.37699067]
[1680517671671,0.35359497,28373.0,28372.0,0.37699067]
[1680517672535,0.38059497,28373.0,28372.0,0.37699067]
[1680517672753,0.39469197,28373.0,28372.0,0.1670831]
[1680517672965,0.73841197,28373.0,28372.0,0.1670831]
[1680517673406,0.76541197,28373.0,28372.0,0.29269679]
[1680517673623,0.76559197,28373.0,28372.0,0.1670831]
[1680517673855,0.76541197,28373.0,28372.0,0.1670831]
[1680517674283,0.73841197,28373.0,28372.0,0.1670831]
[1680517674499,0.76541197,28373.0,28372.0,0.1670831]
[1680517674704,0.73841197,28373.0,28372.0,0.1670831]
[1680517675834,0.76541197,28373.0,28372.0,0.1670831]
[1680517676495,0.76541197,28373.0,28372.0,0.292712]
[1680517676720,0.76559197,28373.0,28372.0,0.1256289]
[1680517676932,0.76541197,28373.0,28372.0,0.1256289]
[1680517677152,0.76559197,28373.0,28372.0,0.0837606]
[1680517678682,0.76559197,28373.0,28371.0,0.05806443]
[1680517678928,0.72587497,28372.0,28371.0,0.05806443]
[1680517679145,0.73997297,28372.0,28371.0,0.05806443]
[1680517679364,0.73997297,28372.0,28370.0,0.1672631]
[1680517679365,0.00448,28371.0,28370.0,0.00018]
[1680517679594,0.00448,28371.0,28368.0,0.37717067]
[1680517679595,0.37355297,28371.0,28368.0,0.37717067]
[1680517679811,0.35497497,28370.0,28368.0,0.37717067]
[1680517680035,0.35497497,28370.0,28369.0,0.1670831]
[1680517680272,0.35497497,28370.0,28369.0,0.1672631]
[1680517680709,0.38197497,28370.0,28369.0,0.1672631]
[1680517680920,0.38197497,28370.0,28369.0,0.3715271]
[1680517681145,0.38197497,28370.0,28369.0,0.2215271]
[1680517681772,0.35497497,28370.0,28369.0,0.1672631]
[1680517682209,0.38197497,28370.0,28369.0,0.1672631]
[1680517683490,0.38197497,28370.0,28369.0,0.21008757]
[1680517683966,0.38197497,28370.0,28369.0,0.3776742]
[1680517684398,0.38197497,28370.0,28369.0,0.4269452]
[1680517684612,0.38197497,28370.0,28369.0,0.16776663]
[1680517684833,0.38197497,28370.0,28369.0,0.3776742]
[1680517685265,0.38197497,28370.0,28369.0,0.16776663]
[1680517685508,0.38197497,28370.0,28369.0,0.31776663]
[1680517685714,0.38197497,28370.0,28369.0,0.4301722]
[1680517685915,0.38197497,28370.0,28369.0,0.22026463]
[1680517686311,0.38197497,28370.0,28369.0,0.4301722]
[1680517687558,0.38197497,28370.0,28369.0,0.26258557]
[1680517688642,0.38197497,28370.0,28369.0,0.21008757]
[1680517688888,0.38197497,28370.0,28369.0,0.37775098]
[1680517689130,0.38197497,28370.0,28369.0,0.16784341]
[1680517689539,0.38197497,28370.0,28369.0,0.21008757]
[1680517690411,0.38215497,28370.0,28369.0,0.20990757]
[1680517691047,0.38197497,28370.0,28369.0,0.21008757]
[1680517691928,0.39607397,28370.0,28369.0,0.21008757]
[1680517692142,0.38197497,28370.0,28369.0,0.21008757]
[1680517694952,0.38197497,28370.0,28369.0,0.00018]
[1680517695171,0.38197497,28370.0,28368.0,0.053469]
[1680517697599,0.38197497,28370.0,28368.0,0.30578907]
[1680517697809,0.38197497,28370.0,28369.0,0.051459]
[1680517698664,0.38197497,28370.0,28368.0,0.25250007]
[1680517698855,0.35497497,28370.0,28369.0,0.054008]
[1680517699067,0.38197497,28370.0,28369.0,0.054008]
[1680517699268,0.35497497,28370.0,28368.0,0.25250007]
[1680517699555,0.38197497,28370.0,28369.0,0.053879]
[1680517699763,0.38197497,28370.0,28368.0,0.25250007]
[1680517699979,0.38197497,28370.0,28369.0,0.053229]
[1680517700194,0.38197497,28370.0,28368.0,0.25250007]
[1680517700621,0.35497497,28370.0,28368.0,0.25250007]
[1680517700865,0.38197497,28370.0,28369.0,0.054817]
[1680517701077,0.35497497,28370.0,28369.0,0.054817]
[1680517701289,0.38197497,28370.0,28369.0,0.054817]
[1680517701723,0.35497497,28370.0,28369.0,0.054817]
[1680517701960,0.38197497,28370.0,28369.0,0.054817]
[1680517702597,0.3819414,28370.0,28369.0,0.054817]
[1680517702814,0.3818814,28370.0,28369.0,0.054817]
[1680517703462,0.3818814,28370.0,28369.0,0.25232007]
[1680517703675,0.3818814,28370.0,28369.0,0.25250007]
[1680517704114,0.3818814,28370.0,28369.0,0.30584607]
[1680517704514,0.3818814,28370.0,28369.0,0.25250007]
[1680517704942,0.3818814,28370.0,28369.0,0.30557807]
[1680517705155,0.3818814,28370.0,28369.0,0.25250007]
[1680517709487,0.3818814,28370.0,28369.0,0.00018]
[1680517709700,0.3818814,28370.0,28368.0,0.05504763]
[1680517710136,0.35497497,28369.0,28368.0,0.05504763]
[1680517710354,0.35497497,28369.0,28368.0,0.00018]
[1680517710783,0.35497497,28369.0,28368.0,0.05522795]
[1680517711642,0.38197497,28369.0,28368.0,0.05522795]
[1680517715590,0.38197497,28369.0,28368.0,0.42927857]
[1680517717141,0.38197497,28369.0,28368.0,0.48294357]
[1680517717554,0.38197497,28369.0,28368.0,0.42927857]
[1680517718624,0.38197497,28369.0,28368.0,0.05522795]
[1680517718849,0.38197497,28369.0,28368.0,0.00018]
[1680517719302,0.75287497,28369.0,28368.0,0.05504777]
[1680517719523,0.75287497,28369.0,28367.0,0.27457865]
[1680517719524,0.77547397,28369.0,28367.0,0.27457865]
[1680517719749,0.74445497,28368.0,28367.0,0.27457865]
[1680517719990,0.81285497,28368.0,28367.0,0.27457865]
[1680517720642,0.82695497,28368.0,28367.0,0.27457865]
[1680517721095,0.81285497,28368.0,28367.0,0.27457865]
[1680517721337,0.82695497,28368.0,28367.0,0.27457865]
[1680517721771,0.82695497,28368.0,28367.0,0.02198]
[1680517721772,0.85395497,28368.0,28367.0,0.02198]
[1680517721891,0.77145497,28368.0,28367.0,0.0218]
[1680517722941,0.77133633,28368.0,28367.0,0.0218]
[1680517723380,0.77133633,28368.0,28367.0,0.23220237]
[1680517723603,0.77151633,28368.0,28367.0,0.23220237]
[1680517723826,0.77151633,28368.0,28367.0,0.19005154]
[1680517724044,0.77133633,28368.0,28367.0,0.19005154]
[1680517724265,0.75741633,28368.0,28367.0,0.19005154]
[1680517724483,0.77151633,28368.0,28367.0,0.19005154]
[1680517725230,0.77151633,28368.0,28367.0,0.40045391]
[1680517725465,0.38651633,28368.0,28367.0,0.23220237]
[1680517726599,0.77151633,28368.0,28367.0,0.40040222]
[1680517727694,0.77151633,28368.0,28367.0,0.18999985]
[1680517728114,0.77151633,28368.0,28367.0,0.40040222]
[1680517728352,0.40061633,28368.0,28367.0,0.40040222]
[1680517729211,0.38651633,28368.0,28367.0,0.18999985]
[1680517730064,0.38651633,28368.0,28367.0,0.31611862]
[1680517730536,0.35951633,28368.0,28367.0,0.31611862]
[1680517731199,0.38651633,28368.0,28367.0,0.31611862]
[1680517732281,0.40061633,28368.0,28367.0,0.31611862]
[1680517732487,0.40061633,28368.0,28367.0,0.14791877]
[1680517732703,0.40043633,28368.0,28367.0,0.14791877]
[1680517734278,0.38633633,28368.0,28367.0,0.14791877]
[1680517735410,0.04546136,28368.0,28367.0,0.14791877]
[1680517735630,0.0824,28372.0,28367.0,0.14791877]